[Event "Holiday Invitational-IM 2019"]
[Site "Charlotte"]
[Date "2019.12.31"]
[Round "9.5"]
[White "Francisco, Richard"]
[Black "Myers, Dominique"]
[Result "1-0"]
[ECO "A16"]
[WhiteElo "2281"]
[BlackElo "2012"]
[Annotator "ChessBase"]
[PlyCount "85"]
[EventDate "2019.12.26"]
[EventType "tourn"]
[EventCountry "USA"]
[SourceTitle "playchess.com"]
[Source "ChessBase"]
[SourceQuality "1"]
[TimeControl "5400+30"]

1. c4 {[%emt 0:04:22]} Nf6 {[%emt 0:12:32]} 2. g3 {[%emt 0:00:51]} g6 {[%emt 0:00:08]} 3. Bg2 {[%emt 0:00:14]} d5 {[%emt 0:00:06]} 4. cxd5 {[%emt 0:00:30]} Nxd5 {[%emt 0:00:06]} 5. Nc3 {[%emt 0:00:18]} Nb6 {[%emt 0:00:07]} 6. Nf3 {[%emt 0:01:56]} Bg7 {[%emt 0:00:11]} 7. O-O {[%emt 0:00:40]} Nc6 {[%emt 0:00:36]} 8. b3 {[%emt 0:01:27]} O-O {[%emt 0:00:19]} 9. Bb2 {[%emt 0:00:15]} e5 {[%emt 0:00:28]} 10. Rc1 {[%emt 0:01:36]} Qe7 {[%emt 0:04:29]} 11. Nb5 {[%emt 0:14:48]} e4 {[%emt 0:03:02]} 12. Bxg7 {[%emt 0:02:08]} Kxg7 {[%emt 0:00:08]} 13. Ne1 {[%emt 0:01:04]} Rd8 {[%emt 0:00:49]} 14. Qc2 {[%emt 0:02:03]} Bf5 {[%emt 0:02:58]} 15. Qb2+ {[%emt 0:04:27]} Kg8 {[%emt 0:00:11]} 16. f3 {[%emt 0:07:15]} e3 {[%emt 0:03:12]} 17. d3 {[%emt 0:00:31]} a6 {[%emt 0:00:36]} 18. Nc3 {[%emt 0:02:06]} Nd4 {[%emt 0:04:16]} 19. f4 {[%emt 0:01:47]} Rd7 {[%emt 0:05:27]} 20. Bxb7 {[%emt 0:02:39]} Rb8 {[%emt 0:01:06]} 21. Bg2 {[%emt 0:00:58]} Qb4 {[%emt 0:02:11]} 22. Nf3 {[%emt 0:02:08]} Nxf3+ {[%emt 0:11:02]} 23. Bxf3 {[%emt 0:00:59]} Re8 {[%emt 0:06:38]} 24. Rfd1 {[%emt 0:06:39]} Red8 {[%emt 0:06:38]} 25. Rc2 {[%emt 0:05:34]} Rd4 {[%emt 0:02:50]} 26. Qc1 {[%emt 0:02:34]} Qe7 {[%emt 0:08:47]} 27. Re1 {[%emt 0:01:45]} h5 {[%emt 0:03:15]} 28. Nd1 {[%emt 0:00:31]} Re8 {[%emt 0:01:40]} 29. Rxc7 {[%emt 0:00:49]} Nd7 {[%emt 0:02:02]} 30. Rc8 {[%emt 0:01:08]} Nf6 {[%emt 0:00:53]} 31. Rxe8+ {[%emt 0:00:15]} Qxe8 {[%emt 0:00:05]} 32. Qxe3 {[%emt 0:00:14]} Qd8 {[%emt 0:00:38]} 33. Nf2 {[%emt 0:00:48]} Rd6 {[%emt 0:00:32]} 34. Rc1 {[%emt 0:00:45]} h4 {[%emt 0:01:44]} 35. g4 {[%emt 0:01:18]} Be6 {[%emt 0:00:26]} 36. g5 {[%emt 0:01:06]} Nd5 {[%emt 0:00:52]} 37. Qe5 {[%emt 0:00:31]} Qb6 {[%emt 0:01:55]} 38. d4 {[%emt 0:02:07]} Ne7 {[%emt 0:04:47]} 39. e3 {[%emt 0:00:43]} Nf5 {[%emt 0:00:26]} 40. Ne4 {[%emt 0:00:20]} Rxd4 {[%emt 0:03:01]} 41. exd4 {[%emt 0:01:11]} Nxd4 {[%emt 0:00:10]} 42. Nf6+ {[%emt 0:00:35]} Kf8 {[%emt 0:00:31]} 43. Rc8+ {[%emt 0:00:11]} 1-0